[Event "Titled Tuesday Blitz March 08 Early 2022"]
[White "Baker, Chris W"]
[Black "Rosenberg, Evan S"]
[WhiteFideId "401676"]
[BlackFideId "2019299"]
[WhiteElo "2257"]
[BlackElo "2223"]
[Result "1/2-1/2"]
[Round "11"]
[TimeControl "180+1"]
[Date "2022.03.09"]
[WhiteClock "0:00:13"]
[BlackClock "0:00:09"]

1. d4 {[%clk 0:03:00]}  Nf6 {[%clk 0:02:59]} 2. Nf3 {[%clk 0:03:00]}  e6 {[%clk 0:02:56]} 3. g3 {[%clk 0:03:00]}  b5 {[%clk 0:02:55]} 4. Bg2 {[%clk 0:03:00]}  Bb7 {[%clk 0:02:55]} 5. O-O {[%clk 0:03:00]}  d5 {[%clk 0:02:48]} 6. a4 {[%clk 0:02:59]}  b4 {[%clk 0:02:47]} 7. Nbd2 {[%clk 0:02:53]}  Be7 {[%clk 0:02:41]} 8. Nb3 {[%clk 0:02:52]}  a5 {[%clk 0:02:36]} 9. Bg5 {[%clk 0:02:42]}  Nbd7 {[%clk 0:02:33]} 10. c3 {[%clk 0:02:29]}  h6 {[%clk 0:02:21]} 11. Bxf6 {[%clk 0:02:27]}  Bxf6 {[%clk 0:02:04]} 12. cxb4 {[%clk 0:02:25]}  axb4 {[%clk 0:02:04]} 13. Qc2 {[%clk 0:02:24]}  O-O {[%clk 0:01:58]} 14. Rfc1 {[%clk 0:02:23]}  Nb6 {[%clk 0:01:31]} 15. Qxc7 {[%clk 0:02:19]}  Qxc7 {[%clk 0:01:31]} 16. Rxc7 {[%clk 0:02:19]}  Ba6 {[%clk 0:01:32]} 17. e3 {[%clk 0:02:11]}  Rfc8 {[%clk 0:01:18]} 18. Rxc8+ {[%clk 0:02:05]}  Rxc8 {[%clk 0:01:18]} 19. Nc5 {[%clk 0:02:05]}  Be2 {[%clk 0:01:10]} 20. a5 {[%clk 0:01:58]}  Nc4 {[%clk 0:01:06]} 21. a6 {[%clk 0:01:47]}  Nxb2 {[%clk 0:00:54]} 22. Rb1 {[%clk 0:01:39]}  Nd3 {[%clk 0:00:44]} 23. Bf1 {[%clk 0:00:56]}  Bxf1 {[%clk 0:00:34]} 24. Kxf1 {[%clk 0:00:55]}  Nxc5 {[%clk 0:00:35]} 25. dxc5 {[%clk 0:00:54]}  Rxc5 {[%clk 0:00:20]} 26. Rxb4 {[%clk 0:00:51]}  Ra5 {[%clk 0:00:20]} 27. Rb8+ {[%clk 0:00:45]}  Kh7 {[%clk 0:00:20]} 28. Rb6 {[%clk 0:00:44]}  Ra2 {[%clk 0:00:17]} 29. Kg2 {[%clk 0:00:42]}  e5 {[%clk 0:00:16]} 30. h4 {[%clk 0:00:39]}  d4 {[%clk 0:00:16]} 31. exd4 {[%clk 0:00:35]}  e4 {[%clk 0:00:16]} 32. Ne5 {[%clk 0:00:34]}  e3 {[%clk 0:00:16]} 33. Nxf7 {[%clk 0:00:31]}  Rxf2+ {[%clk 0:00:13]} 34. Kh3 {[%clk 0:00:30]}  Ra2 {[%clk 0:00:13]} 35. Re6 {[%clk 0:00:29]}  e2 {[%clk 0:00:11]} 36. h5 {[%clk 0:00:21]}  Bxd4 {[%clk 0:00:11]} 37. Kg4 {[%clk 0:00:17]}  Ra4 {[%clk 0:00:09]} 38. Kf5 {[%clk 0:00:15]}  Rxa6 {[%clk 0:00:08]} 39. Rxe2 {[%clk 0:00:12]}  Rf6+ {[%clk 0:00:09]} 40. Kg4 {[%clk 0:00:11]}  Rxf7 {[%clk 0:00:09]} 41. Re6 {[%clk 0:00:11]}  Bf6 {[%clk 0:00:09]} 42. Kh3 {[%clk 0:00:11]}  Bg5 {[%clk 0:00:09]} 43. g4 {[%clk 0:00:11]}  Rf3+ {[%clk 0:00:09]} 44. Kg2 {[%clk 0:00:11]}  Re3 {[%clk 0:00:09]} 45. Rxe3 {[%clk 0:00:09]}  Bxe3 {[%clk 0:00:09]} 46. Kf3 {[%clk 0:00:10]}  Bg5 {[%clk 0:00:10]} 47. Ke4 {[%clk 0:00:10]}  Kg8 {[%clk 0:00:10]} 48. Kf5 {[%clk 0:00:11]}  Kf7 {[%clk 0:00:11]} 49. Ke5 {[%clk 0:00:10]}  Ke7 {[%clk 0:00:10]} 50. Kf5 {[%clk 0:00:10]}  Kf7 {[%clk 0:00:11]} 51. Ke5 {[%clk 0:00:10]}  g6 {[%clk 0:00:12]} 52. hxg6+ {[%clk 0:00:09]}  Kxg6 {[%clk 0:00:12]} 53. Ke4 {[%clk 0:00:09]}  Bc1 {[%clk 0:00:11]} 54. Kf3 {[%clk 0:00:09]}  Kg5 {[%clk 0:00:12]} 55. Kg2 {[%clk 0:00:10]}  Kxg4 {[%clk 0:00:12]} 56. Kh1 {[%clk 0:00:10]}  Kh3 {[%clk 0:00:12]} 57. Kg1 {[%clk 0:00:11]}  Bf4 {[%clk 0:00:11]} 58. Kh1 {[%clk 0:00:11]}  Kg4 {[%clk 0:00:10]} 59. Kg1 {[%clk 0:00:12]}  Be3+ {[%clk 0:00:10]} 60. Kh1 {[%clk 0:00:12]}  h5 {[%clk 0:00:10]} 61. Kg2 {[%clk 0:00:12]}  h4 {[%clk 0:00:10]} 62. Kh1 {[%clk 0:00:12]}  Kf4 {[%clk 0:00:09]} 63. Kg2 {[%clk 0:00:12]}  Bd4 {[%clk 0:00:08]} 64. Kh1 {[%clk 0:00:12]}  Kg5 {[%clk 0:00:07]} 65. Kg2 {[%clk 0:00:12]}  Kg4 {[%clk 0:00:07]} 66. Kh1 {[%clk 0:00:12]}  Be5 {[%clk 0:00:08]} 67. Kg2 {[%clk 0:00:12]}  Bg3 {[%clk 0:00:09]} 68. Kh1 {[%clk 0:00:12]}  h3 {[%clk 0:00:09]} 69. Kg1 {[%clk 0:00:12]}  Kf3 {[%clk 0:00:09]} 70. Kh1 {[%clk 0:00:12]}  Ke2 {[%clk 0:00:09]} 71. Kg1 {[%clk 0:00:13]} 1/2-1/2


[Site "https://www.chess.com"]

[Event "Titled Tuesday Blitz March 08 Early 2022"]
[White "Berezin, Viktor"]
[Black "Zanette, Edgard Vinicius"]
[WhiteFideId "14107872"]
[BlackFideId "2109263"]
[WhiteElo "2310"]
[BlackElo "2182"]
[Result "0-1"]
[Round "11"]
[TimeControl "180+1"]
[Date "2022.03.09"]
[WhiteClock "0:00:25"]
[BlackClock "0:00:33"]

1. d4 {[%clk 0:02:47]}  d5 {[%clk 0:02:55]} 2. Nf3 {[%clk 0:02:28]}  Nf6 {[%clk 0:02:54]} 3. c4 {[%clk 0:02:27]}  c6 {[%clk 0:02:54]} 4. g3 {[%clk 0:02:23]}  e6 {[%clk 0:02:49]} 5. Bg2 {[%clk 0:02:21]}  Nbd7 {[%clk 0:02:49]} 6. Qc2 {[%clk 0:02:18]}  Bd6 {[%clk 0:02:46]} 7. O-O {[%clk 0:02:19]}  O-O {[%clk 0:02:46]} 8. Nbd2 {[%clk 0:02:17]}  e5 {[%clk 0:02:33]} 9. dxe5 {[%clk 0:02:15]}  Nxe5 {[%clk 0:02:32]} 10. Nxe5 {[%clk 0:01:58]}  Bxe5 {[%clk 0:02:33]} 11. Nf3 {[%clk 0:01:57]}  Bc7 {[%clk 0:02:27]} 12. Rd1 {[%clk 0:01:55]}  Qe7 {[%clk 0:02:26]} 13. Bg5 {[%clk 0:01:50]}  dxc4 {[%clk 0:02:20]} 14. Qxc4 {[%clk 0:01:47]}  h6 {[%clk 0:02:18]} 15. Bd2 {[%clk 0:01:41]}  Re8 {[%clk 0:02:15]} 16. e3 {[%clk 0:01:40]}  Be6 {[%clk 0:02:10]} 17. Qc2 {[%clk 0:01:39]}  Bd5 {[%clk 0:02:04]} 18. a3 {[%clk 0:01:38]}  Ne4 {[%clk 0:01:59]} 19. Bb4 {[%clk 0:01:37]}  Qf6 {[%clk 0:01:55]} 20. Rxd5 {[%clk 0:01:35]}  cxd5 {[%clk 0:01:50]} 21. Qxc7 {[%clk 0:01:36]}  Qxb2 {[%clk 0:01:37]} 22. Rf1 {[%clk 0:01:34]}  a5 {[%clk 0:01:32]} 23. Be7 {[%clk 0:01:23]}  Rac8 {[%clk 0:01:22]} 24. Qd7 {[%clk 0:01:22]}  b5 {[%clk 0:01:14]} 25. Nd4 {[%clk 0:01:18]}  b4 {[%clk 0:01:00]} 26. axb4 {[%clk 0:01:13]}  axb4 {[%clk 0:01:00]} 27. Qxd5 {[%clk 0:01:12]}  Nd2 {[%clk 0:00:54]} 28. Rd1 {[%clk 0:00:56]}  Rxe7 {[%clk 0:00:53]} 29. Nf5 {[%clk 0:00:54]}  Re5 {[%clk 0:00:47]} 30. Qd7 {[%clk 0:00:50]}  Rc1 {[%clk 0:00:37]} 31. Nxh6+ {[%clk 0:00:25]}  gxh6 {[%clk 0:00:33]} 0-1


[Site "https://www.chess.com"]

[Event "Titled Tuesday Blitz March 08 Early 2022"]
[White "Bethke, Richard"]
[Black "Weetik, Vjacheslav"]
[WhiteFideId "12959243"]
[BlackFideId "4153472"]
[WhiteElo "2547"]
[BlackElo "2469"]
[Result "0-1"]
[Round "11"]
[TimeControl "180+1"]
[Date "2022.03.09"]
[WhiteClock "0:01:33"]
[BlackClock "0:01:32"]

1. e4 {[%clk 0:03:00]}  c6 {[%clk 0:02:59]} 2. Nf3 {[%clk 0:02:59]}  d6 {[%clk 0:03:00]} 3. Nc3 {[%clk 0:03:00]}  h6 {[%clk 0:03:00]} 4. d4 {[%clk 0:03:00]}  g5 {[%clk 0:03:00]} 5. Bc4 {[%clk 0:02:58]}  Bg7 {[%clk 0:02:58]} 6. Be3 {[%clk 0:02:47]}  Nd7 {[%clk 0:02:57]} 7. Qe2 {[%clk 0:02:45]}  b5 {[%clk 0:02:54]} 8. Bb3 {[%clk 0:02:45]}  a5 {[%clk 0:02:50]} 9. a4 {[%clk 0:02:33]}  b4 {[%clk 0:02:50]} 10. Nb1 {[%clk 0:02:33]}  Nb6 {[%clk 0:02:41]} 11. h3 {[%clk 0:02:21]}  Ba6 {[%clk 0:02:40]} 12. Qd1 {[%clk 0:02:20]}  Nf6 {[%clk 0:02:38]} 13. Nbd2 {[%clk 0:02:19]}  Qc7 {[%clk 0:02:34]} 14. e5 {[%clk 0:02:18]}  Nfd5 {[%clk 0:02:33]} 15. exd6 {[%clk 0:02:18]}  exd6 {[%clk 0:02:32]} 16. Ne4 {[%clk 0:02:15]}  O-O-O {[%clk 0:02:22]} 17. Qd2 {[%clk 0:02:12]}  f5 {[%clk 0:02:20]} 18. Nexg5 {[%clk 0:02:04]}  hxg5 {[%clk 0:02:17]} 19. Nxg5 {[%clk 0:02:05]}  Rhe8 {[%clk 0:02:09]} 20. O-O-O {[%clk 0:02:01]}  f4 {[%clk 0:02:00]} 21. Bxf4 {[%clk 0:01:45]}  Re2 {[%clk 0:01:59]} 22. Qxe2 {[%clk 0:01:42]}  Bxe2 {[%clk 0:01:58]} 23. Ne6 {[%clk 0:01:42]}  Qf7 {[%clk 0:01:57]} 24. Nxd8 {[%clk 0:01:40]}  Qxf4+ {[%clk 0:01:56]} 25. Kb1 {[%clk 0:01:41]}  Kxd8 {[%clk 0:01:47]} 26. Rde1 {[%clk 0:01:38]}  Qxd4 {[%clk 0:01:47]} 27. c3 {[%clk 0:01:37]}  Nxc3+ {[%clk 0:01:44]} 28. Ka1 {[%clk 0:01:36]}  Qd2 {[%clk 0:01:36]} 29. Rb1 {[%clk 0:01:34]}  Nxb1 {[%clk 0:01:34]} 30. Rxb1 {[%clk 0:01:35]}  Bd3 {[%clk 0:01:33]} 31. Rh1 {[%clk 0:01:33]}  Qxb2# {[%clk 0:01:32]} 0-1


[Site "https://www.chess.com"]

[Event "Titled Tuesday Blitz March 08 Early 2022"]
[White "Bilan, Danila"]
[Black "Hua, Lefong"]
[WhiteFideId "24161918"]
[BlackFideId "2602253"]
[WhiteElo "2164"]
[BlackElo "2599"]
[Result "1/2-1/2"]
[Round "11"]
[TimeControl "180+1"]
[Date "2022.03.09"]
[WhiteClock "0:00:20"]
[BlackClock "0:00:24"]

1. d4 {[%clk 0:03:00]}  Nf6 {[%clk 0:03:00]} 2. c4 {[%clk 0:03:00]}  g6 {[%clk 0:03:00]} 3. Nc3 {[%clk 0:03:00]}  Bg7 {[%clk 0:03:01]} 4. e4 {[%clk 0:03:01]}  d6 {[%clk 0:03:01]} 5. Nf3 {[%clk 0:03:00]}  O-O {[%clk 0:03:01]} 6. Be2 {[%clk 0:03:01]}  Bg4 {[%clk 0:03:01]} 7. O-O {[%clk 0:02:58]}  Nfd7 {[%clk 0:02:58]} 8. Be3 {[%clk 0:02:58]}  c5 {[%clk 0:02:58]} 9. h3 {[%clk 0:02:56]}  Bxf3 {[%clk 0:02:58]} 10. Bxf3 {[%clk 0:02:57]}  Nc6 {[%clk 0:02:56]} 11. dxc5 {[%clk 0:02:56]}  dxc5 {[%clk 0:02:48]} 12. Qd2 {[%clk 0:01:58]}  Nd4 {[%clk 0:02:44]} 13. Bxd4 {[%clk 0:01:56]}  cxd4 {[%clk 0:02:44]} 14. Ne2 {[%clk 0:01:57]}  e5 {[%clk 0:02:42]} 15. Nc1 {[%clk 0:01:53]}  a5 {[%clk 0:02:32]} 16. Nd3 {[%clk 0:01:52]}  Qc7 {[%clk 0:02:31]} 17. Rfc1 {[%clk 0:01:51]}  b6 {[%clk 0:02:29]} 18. b3 {[%clk 0:01:51]}  Nc5 {[%clk 0:02:27]} 19. Rab1 {[%clk 0:01:51]}  h5 {[%clk 0:02:26]} 20. a3 {[%clk 0:01:50]}  Kh7 {[%clk 0:02:26]} 21. Qe2 {[%clk 0:01:43]}  Ra7 {[%clk 0:02:16]} 22. b4 {[%clk 0:01:43]}  Na4 {[%clk 0:02:12]} 23. Rb3 {[%clk 0:01:04]}  Nc3 {[%clk 0:02:11]} 24. Rbxc3 {[%clk 0:01:04]}  dxc3 {[%clk 0:02:11]} 25. Rxc3 {[%clk 0:01:05]}  axb4 {[%clk 0:02:07]} 26. axb4 {[%clk 0:01:06]}  Ra1+ {[%clk 0:01:54]} 27. Kh2 {[%clk 0:01:06]}  Rd8 {[%clk 0:01:54]} 28. c5 {[%clk 0:01:06]}  bxc5 {[%clk 0:01:49]} 29. bxc5 {[%clk 0:01:06]}  Rd4 {[%clk 0:01:47]} 30. Qb2 {[%clk 0:00:47]}  Ra8 {[%clk 0:01:41]} 31. Qc2 {[%clk 0:00:33]}  Bf8 {[%clk 0:01:39]} 32. Rc4 {[%clk 0:00:18]}  Ra5 {[%clk 0:01:31]} 33. c6 {[%clk 0:00:12]}  Ra6 {[%clk 0:01:31]} 34. Rc3 {[%clk 0:00:08]}  f5 {[%clk 0:01:17]} 35. exf5 {[%clk 0:00:07]}  e4+ {[%clk 0:01:16]} 36. g3 {[%clk 0:00:03]}  exd3 {[%clk 0:01:10]} 37. fxg6+ {[%clk 0:00:04]}  Kh8 {[%clk 0:01:01]} 38. Rxd3 {[%clk 0:00:05]}  Rxd3 {[%clk 0:00:54]} 39. Qxd3 {[%clk 0:00:06]}  Ra8 {[%clk 0:00:54]} 40. Qd5 {[%clk 0:00:06]}  Bg7 {[%clk 0:00:46]} 41. Qxh5+ {[%clk 0:00:05]}  Kg8 {[%clk 0:00:46]} 42. Bd5+ {[%clk 0:00:06]}  Kf8 {[%clk 0:00:47]} 43. Qf5+ {[%clk 0:00:06]}  Ke8 {[%clk 0:00:47]} 44. Qf7+ {[%clk 0:00:07]}  Qxf7 {[%clk 0:00:47]} 45. gxf7+ {[%clk 0:00:06]}  Ke7 {[%clk 0:00:47]} 46. g4 {[%clk 0:00:04]}  Ra5 {[%clk 0:00:46]} 47. Be4 {[%clk 0:00:04]}  Be5+ {[%clk 0:00:45]} 48. Kg2 {[%clk 0:00:04]}  Kxf7 {[%clk 0:00:46]} 49. f3 {[%clk 0:00:05]}  Kf6 {[%clk 0:00:45]} 50. h4 {[%clk 0:00:05]}  Ra2+ {[%clk 0:00:43]} 51. Kf1 {[%clk 0:00:05]}  Bg3 {[%clk 0:00:41]} 52. h5 {[%clk 0:00:05]}  Bf4 {[%clk 0:00:41]} 53. Ke1 {[%clk 0:00:05]}  Ke6 {[%clk 0:00:33]} 54. Kd1 {[%clk 0:00:04]}  Rd2+ {[%clk 0:00:31]} 55. Ke1 {[%clk 0:00:04]}  Kd6 {[%clk 0:00:30]} 56. Kf1 {[%clk 0:00:04]}  Be3 {[%clk 0:00:22]} 57. Ke1 {[%clk 0:00:03]}  Kc7 {[%clk 0:00:21]} 58. Kf1 {[%clk 0:00:04]}  Bg5 {[%clk 0:00:21]} 59. Ke1 {[%clk 0:00:04]}  Kd6 {[%clk 0:00:20]} 60. Kf1 {[%clk 0:00:05]}  Rd4 {[%clk 0:00:20]} 61. Ke1 {[%clk 0:00:05]}  Rc4 {[%clk 0:00:21]} 62. Ke2 {[%clk 0:00:06]}  Ke5 {[%clk 0:00:21]} 63. Kd3 {[%clk 0:00:06]}  Rc5 {[%clk 0:00:21]} 64. Ke2 {[%clk 0:00:06]}  Kd4 {[%clk 0:00:22]} 65. Kf2 {[%clk 0:00:06]}  Bf4 {[%clk 0:00:22]} 66. Kg2 {[%clk 0:00:06]}  Ke3 {[%clk 0:00:23]} 67. Kh3 {[%clk 0:00:05]}  Bg5 {[%clk 0:00:23]} 68. Kg3 {[%clk 0:00:05]}  Rc1 {[%clk 0:00:23]} 69. Kg2 {[%clk 0:00:04]}  Bf4 {[%clk 0:00:21]} 70. Kh3 {[%clk 0:00:02]}  Kf2 {[%clk 0:00:20]} 71. g5 {[%clk 0:00:02]}  Bxg5 {[%clk 0:00:19]} 72. Kg4 {[%clk 0:00:03]}  Bh6 {[%clk 0:00:19]} 73. Kf5 {[%clk 0:00:04]}  Ke3 {[%clk 0:00:19]} 74. Ke6 {[%clk 0:00:04]}  Kd4 {[%clk 0:00:19]} 75. Kd7 {[%clk 0:00:05]}  Bf4 {[%clk 0:00:19]} 76. Ke6 {[%clk 0:00:05]}  Rc5 {[%clk 0:00:18]} 77. Kd7 {[%clk 0:00:03]}  Rxh5 {[%clk 0:00:16]} 78. Ke6 {[%clk 0:00:04]}  Rc5 {[%clk 0:00:15]} 79. Kd7 {[%clk 0:00:04]}  Ke5 {[%clk 0:00:16]} 80. c7 {[%clk 0:00:04]}  Kd4 {[%clk 0:00:07]} 81. c8=Q {[%clk 0:00:03]}  Rxc8 {[%clk 0:00:07]} 82. Kxc8 {[%clk 0:00:04]}  Ke5 {[%clk 0:00:07]} 83. Kd7 {[%clk 0:00:05]}  Be3 {[%clk 0:00:08]} 84. Kc8 {[%clk 0:00:05]}  Kf4 {[%clk 0:00:09]} 85. Kd7 {[%clk 0:00:06]}  Bf2 {[%clk 0:00:09]} 86. Kc6 {[%clk 0:00:07]}  Be3 {[%clk 0:00:10]} 87. Kd5 {[%clk 0:00:08]}  Bf2 {[%clk 0:00:10]} 88. Kc4 {[%clk 0:00:08]}  Be3 {[%clk 0:00:11]} 89. Kd3 {[%clk 0:00:09]}  Bf2 {[%clk 0:00:12]} 90. Ke2 {[%clk 0:00:10]}  Be3 {[%clk 0:00:13]} 91. Kf1 {[%clk 0:00:10]}  Bc5 {[%clk 0:00:14]} 92. Kg2 {[%clk 0:00:11]}  Bb6 {[%clk 0:00:15]} 93. Kh3 {[%clk 0:00:12]}  Ba7 {[%clk 0:00:15]} 94. Kg2 {[%clk 0:00:13]}  Bb8 {[%clk 0:00:16]} 95. Kh3 {[%clk 0:00:13]}  Bc7 {[%clk 0:00:17]} 96. Kh4 {[%clk 0:00:14]}  Bb6 {[%clk 0:00:18]} 97. Kh3 {[%clk 0:00:15]}  Bc5 {[%clk 0:00:19]} 98. Kg2 {[%clk 0:00:16]}  Be3 {[%clk 0:00:20]} 99. Kh3 {[%clk 0:00:17]}  Bd4 {[%clk 0:00:21]} 100. Kg2 {[%clk 0:00:18]}  Be5 {[%clk 0:00:22]} 101. Kh3 {[%clk 0:00:19]}  Bd4 {[%clk 0:00:23]} 102. Kg2 {[%clk 0:00:20]}  Be3 {[%clk 0:00:24]} 103. Kh3 {[%clk 0:00:20]}  Bd4 {[%clk 0:00:24]} 1/2-1/2


[Site "https://www.chess.com"]

[Event "Titled Tuesday Blitz March 08 Early 2022"]
[White "Borodavkin, Anatoly"]
[Black "Ptacnikova, Lenka"]
[WhiteFideId "14150662"]
[BlackFideId "305650"]
[WhiteElo "1845"]
[BlackElo "1923"]
[Result "1/2-1/2"]
[Round "11"]
[TimeControl "180+1"]
[Date "2022.03.09"]
[WhiteClock "0:00:02"]
[BlackClock "0:00:14"]

1. e4 {[%clk 0:03:00]}  c5 {[%clk 0:02:59]} 2. Nc3 {[%clk 0:03:00]}  e6 {[%clk 0:03:00]} 3. g3 {[%clk 0:03:01]}  d5 {[%clk 0:02:59]} 4. Bg2 {[%clk 0:02:58]}  dxe4 {[%clk 0:02:56]} 5. Nxe4 {[%clk 0:02:55]}  Be7 {[%clk 0:02:55]} 6. d3 {[%clk 0:02:54]}  Nf6 {[%clk 0:02:55]} 7. Be3 {[%clk 0:02:52]}  Qc7 {[%clk 0:02:34]} 8. Ne2 {[%clk 0:02:42]}  Nd5 {[%clk 0:02:31]} 9. Bd2 {[%clk 0:02:35]}  Nc6 {[%clk 0:02:29]} 10. O-O {[%clk 0:02:33]}  O-O {[%clk 0:02:28]} 11. Nf4 {[%clk 0:02:30]}  Nxf4 {[%clk 0:02:19]} 12. Bxf4 {[%clk 0:02:30]}  e5 {[%clk 0:02:19]} 13. Be3 {[%clk 0:02:29]}  b6 {[%clk 0:02:16]} 14. f4 {[%clk 0:02:24]}  Bb7 {[%clk 0:02:14]} 15. fxe5 {[%clk 0:02:18]}  Nxe5 {[%clk 0:02:07]} 16. Bf4 {[%clk 0:02:15]}  Rae8 {[%clk 0:01:56]} 17. Qd2 {[%clk 0:02:00]}  f6 {[%clk 0:01:30]} 18. Rae1 {[%clk 0:01:55]}  Qd7 {[%clk 0:01:22]} 19. h3 {[%clk 0:01:44]}  Ng6 {[%clk 0:01:18]} 20. Re2 {[%clk 0:01:27]}  Nxf4 {[%clk 0:01:16]} 21. Qxf4 {[%clk 0:01:25]}  Bd8 {[%clk 0:01:10]} 22. Rfe1 {[%clk 0:01:18]}  Bc7 {[%clk 0:01:05]} 23. Qf3 {[%clk 0:00:57]}  Bc8 {[%clk 0:00:54]} 24. g4 {[%clk 0:00:40]}  Be5 {[%clk 0:00:49]} 25. c3 {[%clk 0:00:37]}  Rd8 {[%clk 0:00:47]} 26. Nf2 {[%clk 0:00:31]}  Ba6 {[%clk 0:00:46]} 27. Rd1 {[%clk 0:00:25]}  Rfe8 {[%clk 0:00:37]} 28. Red2 {[%clk 0:00:25]}  Qc7 {[%clk 0:00:33]} 29. d4 {[%clk 0:00:20]}  cxd4 {[%clk 0:00:29]} 30. cxd4 {[%clk 0:00:21]}  Bf4 {[%clk 0:00:29]} 31. Rd3 {[%clk 0:00:12]}  Bxd3 {[%clk 0:00:27]} 32. Nxd3 {[%clk 0:00:10]}  Bd6 {[%clk 0:00:24]} 33. Qd5+ {[%clk 0:00:09]}  Kh8 {[%clk 0:00:24]} 34. Qf3 {[%clk 0:00:08]}  Qc4 {[%clk 0:00:23]} 35. d5 {[%clk 0:00:08]}  Qxa2 {[%clk 0:00:19]} 36. g5 {[%clk 0:00:07]}  fxg5 {[%clk 0:00:17]} 37. Rf1 {[%clk 0:00:06]}  Qc4 {[%clk 0:00:14]} 38. Qd1 {[%clk 0:00:03]}  Qd4+ {[%clk 0:00:14]} 39. Kh1 {[%clk 0:00:02]} 1/2-1/2


[Site "https://www.chess.com"]

[Event "Titled Tuesday Blitz March 08 Early 2022"]
[White "Bortnyk, Olexandr"]
[Black "Timofeev, Artyom"]
[WhiteFideId "14120828"]
[BlackFideId "4140419"]
[WhiteElo "2723"]
[BlackElo "2594"]
[Result "1-0"]
[Round "11"]
[TimeControl "180+1"]
[Date "2022.03.08"]
[WhiteClock "0:00:24"]
[BlackClock "0:00:03"]

1. e4 {[%clk 0:02:59]}  c5 {[%clk 0:02:59]} 2. c3 {[%clk 0:02:59]}  e6 {[%clk 0:02:55]} 3. d4 {[%clk 0:02:57]}  d5 {[%clk 0:02:56]} 4. exd5 {[%clk 0:02:58]}  exd5 {[%clk 0:02:56]} 5. Be3 {[%clk 0:02:59]}  c4 {[%clk 0:02:54]} 6. b3 {[%clk 0:02:59]}  cxb3 {[%clk 0:02:54]} 7. axb3 {[%clk 0:03:00]}  Nc6 {[%clk 0:02:53]} 8. Bd3 {[%clk 0:03:00]}  Bd6 {[%clk 0:02:53]} 9. h3 {[%clk 0:03:00]}  Nge7 {[%clk 0:02:52]} 10. Qf3 {[%clk 0:03:01]}  O-O {[%clk 0:02:51]} 11. Ne2 {[%clk 0:03:01]}  Be6 {[%clk 0:02:47]} 12. Nf4 {[%clk 0:03:02]}  Qd7 {[%clk 0:02:46]} 13. Nd2 {[%clk 0:03:00]}  Bf5 {[%clk 0:02:42]} 14. Bxf5 {[%clk 0:02:54]}  Qxf5 {[%clk 0:02:41]} 15. O-O {[%clk 0:02:54]}  a6 {[%clk 0:02:38]} 16. Rfe1 {[%clk 0:02:45]}  Rac8 {[%clk 0:02:36]} 17. Nh5 {[%clk 0:02:20]}  Qxf3 {[%clk 0:02:33]} 18. Nxf3 {[%clk 0:02:21]}  Rfe8 {[%clk 0:02:32]} 19. Bd2 {[%clk 0:02:17]}  Ng6 {[%clk 0:02:16]} 20. Kf1 {[%clk 0:02:17]}  f6 {[%clk 0:02:15]} 21. g3 {[%clk 0:01:59]}  Kf7 {[%clk 0:02:14]} 22. h4 {[%clk 0:01:56]}  Nce7 {[%clk 0:02:06]} 23. Ke2 {[%clk 0:01:51]}  Nf8 {[%clk 0:01:45]} 24. Kd3 {[%clk 0:01:50]}  Nd7 {[%clk 0:01:41]} 25. Bf4 {[%clk 0:01:40]}  Nf5 {[%clk 0:01:38]} 26. Rxe8 {[%clk 0:01:37]}  Rxe8 {[%clk 0:01:36]} 27. Bxd6 {[%clk 0:01:38]}  Nxd6 {[%clk 0:01:36]} 28. Nf4 {[%clk 0:01:39]}  Nb6 {[%clk 0:01:29]} 29. Ra5 {[%clk 0:01:38]}  Ne4 {[%clk 0:01:28]} 30. Ra2 {[%clk 0:01:27]}  g5 {[%clk 0:01:25]} 31. hxg5 {[%clk 0:01:24]}  fxg5 {[%clk 0:01:25]} 32. Ng2 {[%clk 0:01:25]}  h5 {[%clk 0:01:15]} 33. Ne3 {[%clk 0:01:19]}  Kf6 {[%clk 0:01:11]} 34. Ne5 {[%clk 0:01:14]}  h4 {[%clk 0:01:06]} 35. gxh4 {[%clk 0:01:13]}  gxh4 {[%clk 0:01:06]} 36. c4 {[%clk 0:01:13]}  Rxe5 {[%clk 0:00:31]} 37. Ng4+ {[%clk 0:00:57]}  Kf5 {[%clk 0:00:32]} 38. Nxe5 {[%clk 0:00:58]}  h3 {[%clk 0:00:25]} 39. f3 {[%clk 0:00:58]}  dxc4+ {[%clk 0:00:22]} 40. bxc4 {[%clk 0:00:56]}  Ng5 {[%clk 0:00:20]} 41. Ke3 {[%clk 0:00:39]}  Ne6 {[%clk 0:00:20]} 42. Rb2 {[%clk 0:00:36]}  Na4 {[%clk 0:00:08]} 43. Rxb7 {[%clk 0:00:36]}  Nc3 {[%clk 0:00:08]} 44. Rf7+ {[%clk 0:00:27]}  Kg5 {[%clk 0:00:08]} 45. d5 {[%clk 0:00:27]}  h2 {[%clk 0:00:04]} 46. Rh7 {[%clk 0:00:26]}  Nd1+ {[%clk 0:00:03]} 47. Ke2 {[%clk 0:00:26]}  Nf4+ {[%clk 0:00:03]} 48. Kxd1 {[%clk 0:00:23]}  Nh5 {[%clk 0:00:03]} 49. f4+ {[%clk 0:00:24]} 1-0


[Site "https://www.chess.com"]

[Event "Titled Tuesday Blitz March 08 Early 2022"]
[White "Bryakin, Mikhail"]
[Black "Horobetz, Graham"]
[WhiteFideId "4165314"]
[BlackFideId "2047322"]
[WhiteElo "2417"]
[BlackElo "2643"]
[Result "1-0"]
[Round "11"]
[TimeControl "180+1"]
[Date "2022.03.08"]
[WhiteClock "0:01:29"]
[BlackClock "0:00:09"]

1. e4 {[%clk 0:02:59]}  c5 {[%clk 0:02:59]} 2. Nf3 {[%clk 0:02:58]}  d6 {[%clk 0:02:59]} 3. c3 {[%clk 0:02:57]}  Nf6 {[%clk 0:03:00]} 4. Bd3 {[%clk 0:02:42]}  Nc6 {[%clk 0:02:45]} 5. O-O {[%clk 0:02:40]}  e5 {[%clk 0:02:28]} 6. Bc2 {[%clk 0:02:39]}  g6 {[%clk 0:02:22]} 7. d4 {[%clk 0:02:40]}  Bg4 {[%clk 0:01:58]} 8. d5 {[%clk 0:02:35]}  Nb8 {[%clk 0:01:40]} 9. h3 {[%clk 0:02:35]}  Bc8 {[%clk 0:01:35]} 10. a4 {[%clk 0:02:31]}  Bg7 {[%clk 0:01:35]} 11. b4 {[%clk 0:02:27]}  b6 {[%clk 0:01:23]} 12. Be3 {[%clk 0:02:26]}  O-O {[%clk 0:01:20]} 13. Nbd2 {[%clk 0:02:25]}  Nh5 {[%clk 0:01:18]} 14. Nc4 {[%clk 0:02:22]}  Qc7 {[%clk 0:00:52]} 15. b5 {[%clk 0:02:14]}  Nd7 {[%clk 0:00:43]} 16. g3 {[%clk 0:02:08]}  Ndf6 {[%clk 0:00:41]} 17. Kh2 {[%clk 0:01:57]}  h6 {[%clk 0:00:40]} 18. Ng1 {[%clk 0:01:56]}  Nh7 {[%clk 0:00:38]} 19. Bd3 {[%clk 0:01:52]}  Bd7 {[%clk 0:00:35]} 20. Be2 {[%clk 0:01:50]}  N5f6 {[%clk 0:00:34]} 21. f3 {[%clk 0:01:43]}  Ne8 {[%clk 0:00:33]} 22. Qd2 {[%clk 0:01:40]}  f5 {[%clk 0:00:30]} 23. Bxh6 {[%clk 0:01:37]}  f4 {[%clk 0:00:30]} 24. Bxg7 {[%clk 0:01:36]}  Kxg7 {[%clk 0:00:31]} 25. g4 {[%clk 0:01:35]}  Ng5 {[%clk 0:00:31]} 26. Kg2 {[%clk 0:01:29]}  Rh8 {[%clk 0:00:30]} 27. Qe1 {[%clk 0:01:30]}  Nf6 {[%clk 0:00:28]} 28. h4 {[%clk 0:01:29]}  Nf7 {[%clk 0:00:28]} 29. Nh3 {[%clk 0:01:30]}  Rh7 {[%clk 0:00:25]} 30. Ng5 {[%clk 0:01:30]}  Nxg5 {[%clk 0:00:15]} 31. hxg5 {[%clk 0:01:29]}  Ng8 {[%clk 0:00:15]} 32. Rh1 {[%clk 0:01:29]}  Ne7 {[%clk 0:00:13]} 33. Rxh7+ {[%clk 0:01:29]}  Kxh7 {[%clk 0:00:14]} 34. Qh1+ {[%clk 0:01:29]}  Kg8 {[%clk 0:00:14]} 35. Qh6 {[%clk 0:01:29]}  Kf7 {[%clk 0:00:11]} 36. Qh7+ {[%clk 0:01:29]}  Kf8 {[%clk 0:00:11]} 37. Rh1 {[%clk 0:01:29]}  Be8 {[%clk 0:00:10]} 38. Qh8+ {[%clk 0:01:29]}  Ng8 {[%clk 0:00:10]} 39. Rh7 {[%clk 0:01:29]}  Bf7 {[%clk 0:00:09]} 40. Qg7+ {[%clk 0:01:29]}  Ke8 {[%clk 0:00:09]} 41. Qxg8+ {[%clk 0:01:29]} 1-0


[Site "https://www.chess.com"]